bitfinex/quotes_SOLUSD_20251119
["timestamp","ask_amount","ask_price","bid_price","bid_amount"]
[1763528936147,5.56654602,138.62,138.6,4.36]
[1763528936647,23.68750602,138.61,138.6,4.36]
[1763528937845,18.12096,138.61,138.6,4.36]
[1763528938232,23.68750602,138.61,138.58,0.72]
[1763528938433,23.68750602,138.61,138.59,4.36]
[1763528938633,18.12096,138.59,138.58,0.72]
[1763528938848,18.12096,138.57,138.56,0.72]
[1763528939146,18.12096,138.57,138.56,5.08]
[1763528939554,5.56654602,138.59,138.56,5.08]
[1763528940449,23.68750602,138.58,138.57,0.72]
[1763528940648,18.12096,138.58,138.57,5.08]
[1763528940854,18.81096,138.63,138.57,5.08]
[1763528941351,5.56654602,138.64,138.58,6.28654602]
[1763528941542,5.56654602,138.66,138.6,9.78882769]
[1763528941744,5.56654602,138.66,138.61,5.08]
[1763528941941,23.68750602,138.66,138.61,5.08]
[1763528942137,23.68750602,138.66,138.62,0.72]
[1763528942342,18.12096,138.66,138.62,0.72]
[1763528942750,18.12096,138.66,138.62,6.28654602]
[1763528942949,0.69,138.7,138.63,5.56654602]
[1763528942950,5.56654602,138.68,138.63,5.56654602]
[1763528943149,0.69,138.73,138.65,5.56654602]
[1763528943455,0.69,138.73,138.63,10.50882769]
[1763528943456,5.56654602,138.69,138.64,0.72]
[1763528943634,5.56654602,138.69,138.65,4.36]
[1763528943950,18.12096,138.68,138.65,9.92654602]
[1763528944178,5.56654602,138.73,138.66,10.50882769]
[1763528944456,18.12096,138.7,138.67,0.72]
[1763528944646,5.56654602,138.72,138.67,0.72]
[1763528944856,19.01096,138.75,138.67,0.72]
[1763528945049,0.2,138.75,138.68,5.56654602]
[1763528945359,23.68750602,138.73,138.69,4.36]
[1763528945545,23.68750602,138.73,138.69,5.08]
[1763528945746,23.68750602,138.73,138.7,0.72]
[1763528946060,18.12096,138.73,138.7,0.72]
[1763528946641,5.56654602,138.74,138.7,0.72]
[1763528946840,0.2,138.75,138.7,0.72]
[1763528946841,0.2,138.75,138.71,9.78882769]
[1763528947359,0.2,138.75,138.72,0.72]
[1763528947534,0.2,138.75,138.73,4.36]
[1763528947933,0.2,138.75,138.73,5.08]
[1763528948646,0.2,138.75,138.74,0.72]
[1763528951064,9.49192611,138.75,138.74,4.36]
[1763528951562,0.2,138.75,138.74,4.36]
[1763528951738,9.49192611,138.75,138.74,4.36]
[1763528952155,0.2,138.75,138.74,5.08]
[1763528952741,0.69,138.82,138.74,14.37192611]
[1763528953042,27.41288611,138.8,138.75,0.67]
[1763528953458,9.29192611,138.79,138.75,0.67]
[1763528953852,9.29192611,138.8,138.75,0.67]
[1763528954046,9.29192611,138.79,138.75,0.67]
[1763528955763,18.12096,138.81,138.75,0.67]
[1763528955764,18.12096,138.81,138.75,9.96192611]
[1763528955947,9.29192611,138.8,138.75,9.96192611]
[1763528956147,9.29192611,138.8,138.76,0.67]
[1763528956348,9.29192611,138.8,138.77,4.36]
[1763528957168,0.2,138.84,138.77,4.36]
[1763528957466,9.29192611,138.81,138.78,0.67]
[1763528957967,9.29192611,138.82,138.78,0.67]
[1763528958157,27.41288611,138.82,138.78,0.67]
[1763528958354,9.29192611,138.83,138.78,0.67]
[1763528958669,18.12096,138.82,138.78,0.67]
[1763528958973,9.29192611,138.83,138.78,0.67]
[1763528959475,18.12096,138.82,138.78,0.67]
[1763528960874,0.2,138.84,138.78,0.67]
[1763528961091,18.12096,138.82,138.78,0.67]
[1763528961370,18.12096,138.82,138.78,9.96192611]
[1763528961869,18.12096,138.82,138.79,0.67]
[1763528962071,0.2,138.84,138.8,13.65192611]
[1763528962375,0.2,138.84,138.81,19.7507538]
[1763528962752,0.2,138.84,138.82,0.67]
[1763528962954,0.2,138.84,138.83,4.36]
[1763528963459,0.2,138.84,138.83,5.03]
[1763528963975,9.49192611,138.86,138.83,5.03]
[1763528963976,0.2,138.86,138.83,14.32192611]
[1763528964176,0.2,138.86,138.84,9.96192611]
[1763528964477,9.29192611,138.92,138.86,9.78882769]
[1763528964655,9.29192611,138.93,138.87,13.65192611]
[1763528964861,9.29192611,138.92,138.87,14.32192611]
[1763528965050,18.12096,138.93,138.88,0.67]
[1763528965254,10.06192611,138.94,138.89,9.78882769]
[1763528965455,18.12096,138.93,138.9,5.03]
[1763528965983,27.41288611,138.93,138.87,9.29192611]
[1763528966277,28.08288611,138.93,138.88,14.81882769]
[1763528966566,0.67,138.92,138.86,0.67]
[1763528966768,9.29192611,138.9,138.87,4.36]
[1763528967178,9.29192611,138.9,138.87,5.03]
[1763528967876,9.29192611,138.88,138.84,0.67]
[1763528968177,9.29192611,138.89,138.85,4.36]
[1763528968365,18.12096,138.9,138.86,5.01]
[1763528968867,9.29192611,138.9,138.87,0.67]
[1763528969072,9.29192611,138.9,138.88,4.34]
[1763528969573,9.29192611,138.91,138.88,4.34]
[1763528970272,9.29192611,138.9,138.88,4.34]
[1763528970968,9.96192611,138.89,138.82,0.67]
[1763528971174,9.29192611,138.85,138.83,4.34]
[1763528971557,18.79096,138.87,138.83,0.67]
[1763528971764,9.29192611,138.86,138.84,4.34]
[1763528973675,9.29192611,138.85,138.8,10.45882769]
[1763528973977,9.29192611,138.84,138.81,4.34]
[1763528974200,9.29192611,138.84,138.81,5.01]
[1763528974378,9.29192611,138.82,138.78,21.39050521]
[1763528974576,9.29192611,138.81,138.79,4.34]
[1763528974871,9.29192611,138.81,138.8,4.34]
[1763528975051,9.29192611,138.82,138.8,4.34]
[1763528975469,9.29192611,138.81,138.8,4.34]
[1763528976773,0.67,138.84,138.8,4.34]
[1763528976969,18.12096,138.83,138.8,4.34]
[1763528977169,9.29192611,138.81,138.75,9.78882769]
[1763528977480,9.29192611,138.81,138.76,4.34]
[1763528977481,9.29192611,138.77,138.76,4.34]
[1763528977666,9.29192611,138.78,138.76,4.34]
[1763528977862,9.29192611,138.77,138.72,0.67]
[1763528978172,9.29192611,138.76,138.73,4.34]
[1763528978369,9.29192611,138.77,138.73,4.34]
[1763528978574,9.29192611,138.78,138.74,0.67]
[1763528978775,0.67,138.8,138.74,0.67]
[1763528978958,9.29192611,138.78,138.74,0.67]
[1763528979279,9.29192611,138.77,138.73,4.34]
[1763528979474,9.29192611,138.77,138.73,5.01]
[1763528979679,9.96192611,138.79,138.74,0.67]
[1763528980578,18.12096,138.81,138.74,0.67]
[1763528980779,9.29192611,138.77,138.74,0.67]
[1763528980988,9.29192611,138.78,138.74,0.67]
[1763528981585,0.67,138.8,138.74,0.67]
[1763528981785,9.29192611,138.79,138.74,0.67]
[1763528981994,9.29192611,138.78,138.74,0.67]
[1763528982188,9.29192611,138.78,138.75,4.34]
[1763528982362,9.96192611,138.79,138.75,4.34]
[1763528982562,9.96192611,138.79,138.75,5.0]
[1763528982863,9.29192611,138.8,138.75,4.34]
[1763528983183,9.98192611,138.8,138.76,0.66]
[1763528983581,27.41288611,138.8,138.76,0.66]
[1763528984464,28.10288611,138.8,138.76,0.66]
[1763528984789,0.69,138.79,138.73,0.66]
[1763528985085,9.29192611,138.78,138.74,4.34]
[1763528985673,9.29192611,138.78,138.75,0.66]
[1763528986574,9.98192611,138.78,138.74,4.34]
[1763528986776,18.81096,138.8,138.75,0.66]
[1763528986970,9.29192611,138.78,138.75,0.66]
[1763528987399,18.81096,138.8,138.75,0.66]
[1763528987686,9.98192611,138.79,138.75,0.66]
[1763528988991,9.29192611,138.78,138.75,0.66]
[1763528989482,9.29192611,138.78,138.74,5.0]
[1763528989864,9.29192611,138.78,138.74,4.34]
[1763528990077,9.29192611,138.78,138.75,0.66]
[1763528990381,9.29192611,138.78,138.76,4.34]
[1763528991484,9.98192611,138.79,138.76,4.34]
[1763528991690,0.69,138.79,138.76,5.0]
[1763528991886,9.98192611,138.79,138.76,4.34]
[1763528992083,18.12096,138.78,138.76,4.34]
[1763528992392,18.12096,138.78,138.76,5.0]
[1763528992590,9.98192611,138.8,138.76,5.0]
[1763528993589,9.29192611,138.78,138.76,4.34]
[1763528993762,9.98192611,138.8,138.76,5.0]
[1763528993968,18.12096,138.79,138.76,5.0]
[1763528995664,9.29192611,138.79,138.76,5.0]
[1763528997294,9.29192611,138.79,138.73,9.78882769]
[1763528997501,9.29192611,138.76,138.74,4.34]
[1763528997790,9.29192611,138.76,138.75,4.34]
[1763528998299,9.98192611,138.76,138.71,0.66]
[1763528998493,9.29192611,138.73,138.72,4.34]
[1763528998901,9.29192611,138.74,138.72,4.34]
[1763528999105,9.29192611,138.74,138.72,5.0]
[1763528999501,18.12096,138.75,138.72,4.34]
[1763528999694,18.12096,138.74,138.73,0.66]
[1763528999898,18.12096,138.74,138.72,5.0]
[1763529000304,18.12096,138.77,138.73,4.34]
[1763529000600,18.12096,138.71,138.65,30.9]
[1763529000794,9.29192611,138.69,138.65,31.56]
[1763529000999,9.29192611,138.69,138.63,133.99319335]
[1763529001000,9.29192611,138.66,138.63,30.9]
[1763529001298,9.29192611,138.64,138.61,31.66]
[1763529001502,9.29192611,138.64,138.62,5.0]
[1763529001677,18.12096,138.66,138.62,4.34]
[1763529001881,9.29192611,138.65,138.62,5.0]
[1763529002092,9.29192611,138.65,138.62,0.66]
[1763529002290,18.81096,138.66,138.63,4.34]
[1763529002487,0.69,138.71,138.63,44.53192611]
[1763529002693,28.10288611,138.71,138.65,9.29192611]
[1763529002897,28.10288611,138.71,138.66,4.34]
[1763529003203,18.12096,138.69,138.66,14.29192611]
[1763529003405,18.12096,138.71,138.66,45.19192611]
[1763529003579,18.12096,138.71,138.67,0.66]
[1763529003779,18.81096,138.71,138.67,0.66]
[1763529004178,4.34,138.76,138.7,9.29192611]
[1763529004179,9.98192611,138.76,138.7,9.29192611]
[1763529004380,9.29192611,138.77,138.71,4.34]
[1763529004587,18.12096,138.74,138.71,4.34]
[1763529005000,18.12096,138.74,138.71,5.0]
[1763529005499,9.29192611,138.74,138.69,0.66]
[1763529005690,0.69,138.76,138.7,5.0]
[1763529006002,9.29192611,138.75,138.7,5.0]
[1763529006208,27.41288611,138.75,138.7,5.0]
[1763529006405,28.10288611,138.75,138.7,5.0]
[1763529006711,28.10288611,138.75,138.71,0.66]
[1763529007007,24.37125333,138.75,138.71,0.66]
[1763529007209,18.12096,138.73,138.72,4.34]
[1763529007399,23.68125333,138.73,138.67,9.78882769]
[1763529007604,5.56029333,138.7,138.68,4.34]
[1763529007800,5.56029333,138.7,138.65,0.66]
[1763529007801,0.69,138.72,138.65,0.66]
[1763529008108,23.68125333,138.72,138.66,10.56029333]
[1763529008608,23.68125333,138.72,138.67,0.66]
[1763529008913,5.56029333,138.69,138.68,4.34]
[1763529009295,6.25029333,138.69,138.64,31.56]
[1763529009608,5.56029333,138.67,138.65,4.34]
[1763529009810,6.25029333,138.68,138.65,4.34]
[1763529009998,5.56029333,138.69,138.65,4.34]
[1763529010199,23.68125333,138.7,138.66,0.66]
[1763529010400,5.56029333,138.68,138.65,4.34]
[1763529011413,6.25029333,138.68,138.65,4.34]
[1763529011808,6.25029333,138.68,138.65,134.0]
[1763529012006,5.56029333,138.67,138.66,4.34]
[1763529012515,6.25029333,138.67,138.64,4.34]
[1763529012716,5.56029333,138.65,138.64,4.34]
[1763529013323,5.56029333,138.66,138.64,4.34]
[1763529013719,5.56029333,138.65,138.64,4.34]
[1763529014106,6.23029333,138.66,138.64,4.34]
[1763529015022,5.56029333,138.65,138.64,4.34]
[1763529015922,5.56029333,138.66,138.64,4.34]
[1763529016304,5.56029333,138.65,138.64,4.34]
[1763529016703,18.12096,138.71,138.64,4.34]
[1763529017009,18.79096,138.71,138.65,0.69]
[1763529017214,5.56029333,138.7,138.65,0.69]
[1763529017508,24.35125333,138.71,138.65,6.25029333]
[1763529017921,5.56029333,138.7,138.66,0.69]
[1763529018105,23.68125333,138.7,138.67,4.34]
[1763529018508,23.68125333,138.7,138.67,5.03]
[1763529018701,5.56029333,138.69,138.67,4.34]
[1763529018900,23.68125333,138.7,138.67,5.03]
[1763529019239,18.12096,138.7,138.67,5.03]
[1763529019400,23.68125333,138.7,138.67,5.03]
[1763529019801,23.68125333,138.7,138.67,4.34]
[1763529020100,5.56029333,138.69,138.67,4.34]
[1763529020303,18.12096,138.7,138.67,5.03]
[1763529020304,23.68125333,138.7,138.67,5.03]
[1763529020622,23.68125333,138.7,138.67,4.34]
[1763529020916,23.68125333,138.7,138.67,5.03]
[1763529022994,0.72,138.75,138.68,10.59029333]
[1763529023294,18.12096,138.72,138.68,144.59029333]
[1763529023500,18.12096,138.72,138.69,0.69]
[1763529024007,5.56029333,138.73,138.69,0.69]
[1763529024207,23.68125333,138.73,138.69,31.59]
[1763529024615,23.68125333,138.73,138.7,0.69]
[1763529024831,23.68125333,138.73,138.71,4.34]
[1763529025256,18.12096,138.73,138.69,30.9]
[1763529025403,5.56029333,138.7,138.69,35.24]
[1763529026005,5.56029333,138.7,138.69,4.34]
[1763529027125,6.28029333,138.71,138.69,4.34]
[1763529028102,9.78882769,138.76,138.69,4.34]
[1763529028302,5.56029333,138.72,138.69,35.24]
[1763529028503,5.56029333,138.71,138.69,35.24]
[1763529029120,6.28029333,138.72,138.69,30.9]
[1763529029304,6.28029333,138.72,138.7,4.34]
[1763529029506,0.72,138.72,138.7,4.34]
[1763529029718,18.12096,138.71,138.7,4.34]
[1763529031012,5.56029333,138.72,138.7,4.34]
[1763529031212,5.56029333,138.71,138.7,4.34]
[1763529031624,6.28029333,138.72,138.7,4.34]
[1763529031839,0.72,138.79,138.71,0.69]
[1763529032010,5.56029333,138.78,138.72,5.56029333]
[1763529032204,5.56029333,138.78,138.73,5.03]
[1763529032408,23.68125333,138.77,138.74,4.34]
[1763529032614,23.68125333,138.77,138.74,5.03]
[1763529032828,18.12096,138.77,138.74,5.03]
[1763529033029,5.56029333,138.77,138.74,5.03]
[1763529033914,5.56029333,138.77,138.74,4.34]
[1763529034238,5.56029333,138.75,138.73,4.34]
[1763529034423,5.56029333,138.74,138.72,4.34]
[1763529034730,5.56029333,138.73,138.72,4.34]
[1763529036230,18.12096,138.74,138.72,5.03]
[1763529037237,18.12096,138.74,138.72,4.34]
[1763529037408,18.12096,138.74,138.72,5.03]
[1763529037608,5.56029333,138.76,138.73,0.69]
[1763529038309,5.56029333,138.76,138.74,4.34]
[1763529038716,5.56029333,138.76,138.75,4.34]
[1763529039531,18.84096,138.77,138.75,35.24]
[1763529039735,5.56029333,138.76,138.75,35.24]
[1763529042832,6.28029333,138.76,138.75,30.9]
[1763529044531,18.84096,138.76,138.75,30.9]
[1763529044728,24.40125333,138.76,138.75,30.9]
[1763529045320,24.40125333,138.76,138.74,35.24]
[1763529045629,6.28029333,138.75,138.74,35.24]
[1763529046031,6.28029333,138.75,138.74,30.9]
[1763529046331,18.12096,138.72,138.69,35.24]
[1763529046543,18.12096,138.72,138.7,4.34]
[1763529046713,18.84096,138.72,138.7,4.34]
[1763529047330,18.12096,138.72,138.7,4.34]
[1763529047536,18.84096,138.72,138.7,4.34]
[1763529047833,5.56029333,138.71,138.7,4.34]
[1763529048418,18.84096,138.75,138.7,5.05]
[1763529048621,18.12096,138.72,138.71,0.71]
[1763529048820,18.12096,138.72,138.71,31.61]
[1763529049912,5.56029333,138.73,138.71,31.61]
[1763529050117,23.68125333,138.73,138.71,31.61]
[1763529051148,18.12096,138.73,138.72,0.71]
[1763529051521,18.12096,138.73,138.71,30.9]
[1763529051721,18.12096,138.73,138.71,31.61]
[1763529051928,18.12096,138.73,138.72,0.71]
[1763529052636,18.12096,138.73,138.71,30.9]
[1763529052637,23.68125333,138.73,138.71,30.9]
[1763529052936,23.68125333,138.73,138.72,4.34]
[1763529054142,23.68125333,138.73,138.72,35.24]
[1763529056233,23.68125333,138.73,138.72,30.9]
[1763529056436,23.68125333,138.73,138.72,35.24]
[1763529057922,18.12096,138.73,138.72,35.24]
[1763529058128,23.68125333,138.73,138.72,35.24]
[1763529058327,18.12096,138.73,138.72,35.24]
[1763529059929,0.72,138.78,138.72,35.95]
[1763529060133,18.12096,138.74,138.73,0.71]
[1763529060337,18.12096,138.74,138.73,31.61]
[1763529061043,18.12096,138.74,138.73,30.9]
[1763529061345,23.68125333,138.74,138.73,31.61]
[1763529061544,23.68125333,138.74,138.73,35.95]
[1763529061748,23.68125333,138.74,138.73,31.61]
[1763529062248,23.68125333,138.74,138.73,35.95]
[1763529062837,23.68125333,138.74,138.73,31.61]
[1763529063048,23.68125333,138.74,138.73,35.95]
[1763529063950,23.68125333,138.75,138.73,35.95]
[1763529064651,0.72,138.8,138.74,0.71]
[1763529064955,2.13424643,138.77,138.75,4.34]
[1763529065247,2.13424643,138.77,138.75,35.24]
[1763529065450,2.13424643,138.76,138.75,35.95]
[1763529065649,2.13424643,138.76,138.75,30.9]
[1763529065853,2.85424643,138.76,138.75,35.24]
[1763529066149,2.13424643,138.76,138.75,35.24]
[1763529066927,2.85424643,138.76,138.75,35.24]
[1763529067147,2.85424643,138.76,138.75,30.9]
[1763529067353,2.85424643,138.76,138.75,35.24]
[1763529068360,18.12096,138.77,138.75,35.24]
[1763529068563,2.13424643,138.76,138.75,35.24]
[1763529068752,18.84096,138.77,138.75,35.24]
[1763529068950,3.33567385,138.76,138.75,35.24]
[1763529069550,3.33567385,138.77,138.75,35.95]
[1763529069953,3.33567385,138.76,138.75,35.95]
[1763529070254,18.12096,138.77,138.75,35.95]
[1763529070442,3.33567385,138.78,138.75,35.24]
[1763529070637,4.05567385,138.78,138.75,35.24]
[1763529071463,4.05567385,138.78,138.75,35.95]
[1763529071664,18.12096,138.79,138.75,30.9]
[1763529071872,3.33567385,138.76,138.75,30.9]
[1763529072165,9.78882769,138.75,138.68,0.71]
[1763529072367,3.33567385,138.71,138.68,5.03]
[1763529072749,9.29923189,138.71,138.69,0.69]
[1763529073457,9.29923189,138.7,138.69,0.69]
[1763529076549,9.29923189,138.7,138.68,4.34]
[1763529076865,9.29923189,138.69,138.68,4.34]
[1763529077773,9.29923189,138.69,138.68,35.24]
[1763529077972,9.29923189,138.69,138.68,35.93]
[1763529078556,9.29923189,138.69,138.68,35.24]
[1763529078967,9.29923189,138.69,138.68,35.93]
[1763529079691,0.19680654,138.79,138.68,148.32923189]
[1763529079852,0.7,138.75,138.69,0.69]
[1763529080053,9.29923189,138.74,138.69,0.69]
[1763529080367,9.29923189,138.73,138.69,31.59]
[1763529080556,18.12096,138.76,138.69,31.59]
[1763529080876,9.29923189,138.77,138.7,10.47882769]
[1763529081051,9.29923189,138.76,138.71,5.03]
[1763529081255,9.29923189,138.77,138.72,9.78882769]
[1763529081557,9.29923189,138.77,138.72,10.47882769]
[1763529081764,9.29923189,138.77,138.73,0.69]
[1763529081952,9.29923189,138.77,138.74,4.34]
[1763529082154,9.29923189,138.77,138.74,35.24]
[1763529082356,9.29923189,138.77,138.74,35.93]
[1763529082559,9.29923189,138.76,138.74,35.24]
[1763529082760,27.42019189,138.78,138.75,0.66]
[1763529082973,9.29923189,138.77,138.75,0.66]
[1763529083481,9.29923189,138.77,138.75,31.56]
[1763529084151,9.29923189,138.78,138.76,0.66]
[1763529084357,9.29923189,138.8,138.77,4.34]
[1763529084671,9.29923189,138.8,138.77,35.24]
[1763529084882,9.29923189,138.8,138.77,35.9]
[1763529086489,18.81096,138.82,138.78,0.66]
[1763529086662,9.29923189,138.8,138.77,35.9]
[1763529087062,9.98923189,138.8,138.77,35.9]
[1763529087480,9.29923189,138.79,138.77,35.9]
[1763529088068,9.29923189,138.81,138.77,35.9]
[1763529088267,9.98923189,138.81,138.77,35.24]
[1763529088500,9.98923189,138.81,138.78,0.66]
[1763529088663,9.29923189,138.82,138.78,0.66]
[1763529089866,9.29923189,138.81,138.78,134.66]
[1763529090260,9.29923189,138.82,138.79,0.66]
[1763529090462,18.12096,138.85,138.8,4.34]
[1763529090680,9.29923189,138.86,138.81,0.66]
[1763529090884,9.29923189,138.85,138.81,0.66]
[1763529091483,9.29923189,138.83,138.81,0.66]
[1763529091662,9.29923189,138.84,138.81,0.66]
[1763529093662,9.29923189,138.84,138.82,4.34]
[1763529093865,9.29923189,138.83,138.82,4.34]
[1763529094275,9.29923189,138.83,138.81,0.66]
[1763529094478,9.29923189,138.83,138.82,4.34]
[1763529094787,9.29923189,138.84,138.82,4.34]
[1763529095387,9.29923189,138.83,138.79,0.66]
[1763529095585,9.29923189,138.82,138.8,4.32]
[1763529095801,9.29923189,138.81,138.8,30.9]
[1763529095968,9.29923189,138.81,138.8,35.22]
[1763529096291,9.29923189,138.82,138.8,35.22]
[1763529098085,9.29923189,138.81,138.8,30.9]
[1763529098298,9.98923189,138.81,138.78,30.9]
[1763529098482,0.69,138.8,138.79,4.32]
[1763529098665,9.98923189,138.8,138.79,4.32]
[1763529099486,9.29923189,138.81,138.79,4.32]
[1763529099686,9.29923189,138.8,138.79,4.32]
[1763529099877,0.69,138.81,138.79,4.32]
[1763529100191,9.29923189,138.8,138.79,4.32]
[1763529102585,9.29923189,138.8,138.79,35.22]
[1763529104280,0.71,138.82,138.79,35.22]
[1763529104686,9.29923189,138.8,138.79,35.22]
[1763529106598,0.71,138.81,138.79,35.22]
[1763529106784,9.29923189,138.8,138.79,35.22]
[1763529108077,10.00923189,138.8,138.77,30.9]
[1763529108396,27.42019189,138.78,138.77,30.9]
[1763529108579,9.29923189,138.78,138.77,30.9]
[1763529108777,9.29923189,138.78,138.73,103.1]
[1763529108778,10.00923189,138.78,138.73,30.9]
[1763529108977,0.71,138.77,138.74,4.32]
[1763529109477,0.71,138.77,138.73,4.32]
[1763529110291,9.29923189,138.74,138.73,4.32]
[1763529110501,9.29923189,138.74,138.73,35.22]
[1763529113797,18.12096,138.77,138.73,35.9]
[1763529114105,9.29923189,138.76,138.74,0.68]
[1763529114790,3.33561304,138.76,138.74,0.68]
[1763529114988,3.33561304,138.75,138.73,138.32]
[1763529115189,3.33561304,138.75,138.73,139.0]
[1763529117104,3.33561304,138.74,138.73,139.0]
[1763529117898,3.33561304,138.75,138.73,139.0]
[1763529119899,3.33561304,138.75,138.73,134.68]
[1763529120105,3.33561304,138.75,138.74,4.32]
[1763529121099,3.33561304,138.75,138.73,134.68]
[1763529121100,4.04561304,138.75,138.73,134.0]
[1763529121281,18.83096,138.77,138.74,4.32]
[1763529121481,3.33561304,138.75,138.74,35.22]
[1763529123305,18.12096,138.79,138.74,35.9]
[1763529123493,3.33561304,138.77,138.75,0.68]
[1763529123806,21.45657304,138.78,138.75,31.58]
[1763529124203,21.45657304,138.78,138.76,0.68]
[1763529124393,3.33561304,138.77,138.75,30.9]
[1763529124591,3.33561304,138.77,138.76,4.32]
[1763529124791,18.83096,138.78,138.76,4.32]
[1763529124792,0.71,138.78,138.76,4.32]
[1763529124999,3.33561304,138.77,138.76,4.32]
[1763529126610,18.12096,138.78,138.76,4.32]
[1763529126811,3.33561304,138.77,138.76,4.32]
[1763529127109,18.83096,138.78,138.76,4.32]
[1763529127311,3.33561304,138.77,138.76,4.32]
[1763529128907,3.33561304,138.77,138.74,0.68]
[1763529129088,3.33561304,138.76,138.75,4.32]
[1763529129607,3.33561304,138.76,138.75,5.0]
[1763529130208,18.83096,138.78,138.75,5.0]
[1763529130508,3.33561304,138.76,138.75,4.32]
[1763529130887,2.13485938,138.76,138.75,5.0]
[1763529131506,2.13485938,138.76,138.75,4.32]
[1763529132791,2.13485938,138.76,138.75,139.04]
[1763529132984,2.13485938,138.77,138.75,139.04]
[1763529133201,6.26317745,138.84,138.75,139.04]
[1763529133202,2.13485938,138.8,138.76,0.72]
[1763529133400,8.53943752,138.88,138.76,136.85485938]
[1763529133401,0.71,138.84,138.76,136.85485938]
[1763529133592,2.13485938,138.83,138.77,11.92368707]
[1763529133795,2.13485938,138.84,138.78,6.45485938]
[1763529133996,2.13485938,138.84,138.78,7.17485938]
[1763529134198,2.13485938,138.84,138.79,0.72]
[1763529134996,2.13485938,138.83,138.79,0.72]
[1763529135920,2.13485938,138.84,138.79,0.72]
[1763529136411,2.13485938,138.83,138.79,0.72]
[1763529139109,2.13485938,138.83,138.79,134.72]
[1763529139333,2.13485938,138.8,138.79,134.0]
[1763529139611,2.13485938,138.8,138.79,35.22]
[1763529140100,2.84485938,138.8,138.79,30.9]
[1763529140299,2.84485938,138.8,138.79,35.22]
[1763529141716,18.83096,138.8,138.79,30.9]
[1763529141900,20.25581938,138.8,138.79,30.9]
[1763529146406,18.12096,138.8,138.79,30.9]
[1763529146724,29.4952569,138.8,138.79,30.9]
[1763529148930,18.12096,138.77,138.74,30.9]
[1763529149103,2.13485938,138.75,138.74,30.9]
[1763529149302,2.13485938,138.75,138.74,35.22]
[1763529150730,2.13485938,138.75,138.74,35.94]
[1763529151735,18.82096,138.77,138.74,35.94]
[1763529152025,2.13485938,138.75,138.74,35.94]
[1763529152201,2.13485938,138.75,138.74,30.9]
[1763529152399,2.13485938,138.75,138.74,35.22]
[1763529154215,2.13485938,138.75,138.74,30.9]
[1763529154527,2.83485938,138.75,138.74,35.22]
[1763529155626,2.83485938,138.75,138.74,30.9]
[1763529162534,22.44096,138.77,138.74,35.92]
[1763529162535,2.13485938,138.76,138.74,35.92]
[1763529162737,2.13485938,138.76,138.75,0.7]
[1763529163221,2.13485938,138.76,138.74,35.22]
[1763529163421,18.12096,138.77,138.75,0.7]
[1763529164436,2.13485938,138.76,138.74,35.22]
[1763529164623,2.13485938,138.75,138.74,35.92]
[1763529166428,2.13485938,138.76,138.74,35.92]
[1763529166629,2.13485938,138.76,138.75,0.7]
[1763529167433,36.96333147,138.88,138.75,31.6]
[1763529167434,18.12096,138.78,138.75,31.6]
[1763529167638,18.12096,138.78,138.76,4.32]
[1763529167933,18.12096,138.81,138.76,5.02]
[1763529168127,2.13485938,138.79,138.77,0.7]